fUSD/lending_fUSD_20250403
["ID","MTS","AMOUNT","RATE_DAILY","PERIOD"]
[357075605,1743692624291,-500.0,0.00049315,120]
[357075606,1743692624336,-500.0,0.00049315,120]
[357075607,1743692624381,-500.0,0.00049315,120]
[357075608,1743692624425,-3174.55,0.00049315,120]
[357075609,1743692624469,-174.479863,0.00049315,120]
[357075610,1743692624517,-476.2457541,0.00049315,120]
[357075611,1743692624560,-500.0,0.00049315,120]
[357075612,1743692624606,-2385.728061,0.00049315,120]
[357075613,1743692624655,-4542.34,0.00049315,120]
[357075614,1743692624701,-500.0,0.00049315,120]
[357075615,1743692624743,-405.63698668,0.00049315,120]
[357075616,1743692624786,-500.0,0.00049315,120]
[357075617,1743692624830,-500.0,0.00049315,120]
[357075618,1743692624873,-549.60634284,0.00049315,120]
[357075619,1743692624914,-509.13269391,0.00049315,120]
[357075620,1743692624957,-564.38565581,0.00049315,120]
[357075621,1743692625001,-500.0,0.00049315,120]
[357075622,1743692625048,-2315.84,0.00049315,120]
[357075623,1743692625095,-500.0,0.00049315,120]
[357075624,1743692625136,-451.54436445,0.00049315,120]
[357075625,1743692625184,-500.0,0.00049315,120]
[357075626,1743692625227,-560.48886171,0.00049315,120]
[357075627,1743692625273,-500.0,0.00049315,120]
[357075628,1743692625315,-2955.65,0.00049315,120]
[357075629,1743692625358,-500.0,0.00049315,120]
[357075630,1743692625404,-500.0,0.00049315,120]
[357075631,1743692625448,-164.191051,0.00049315,120]
[357075632,1743692625494,-645.09727147,0.00049315,120]
[357075633,1743692625538,-536.22647675,0.00049315,120]
[357075634,1743692625581,-500.0,0.00049315,120]
[357075635,1743692625624,-554.3503176,0.00049315,120]
[357075636,1743692625667,-512.85427411,0.00049315,120]
[357075637,1743692625711,-369.8128212,0.00049315,120]
[357075638,1743692625755,-500.0,0.00049315,120]
[357075639,1743692625801,-841.89,0.00049315,120]
[357075640,1743692625848,-500.0,0.00049315,120]
[357075641,1743692625894,-500.0,0.00049315,120]
[357075642,1743692625936,-501.56488271,0.00049315,120]
[357075643,1743692625979,-514.36626537,0.00049315,120]
[357075644,1743692626025,-516.70215165,0.00049315,120]
[357075645,1743692626070,-602.90798277,0.00049315,120]
[357075646,1743692626216,-602.90798277,0.00049315,120]
[357075647,1743692626289,-602.90798277,0.00049315,120]
[357075648,1743692626334,-602.90798277,0.00049315,120]
[357075649,1743692626381,-602.90798277,0.00049315,120]
[357075650,1743692626423,-3202.74,0.00049315,120]
[357075651,1743692626470,-602.90798277,0.00049315,120]
[357075652,1743692626518,-602.90798277,0.00049315,120]
[357075653,1743692626564,-602.90798277,0.00049315,120]
[357075654,1743692626610,-602.90798277,0.00049315,120]
[357075655,1743692626657,-602.90798277,0.00049315,120]
[357075656,1743692626704,-602.90798277,0.00049315,120]
[357075657,1743692626749,-500.0,0.00049315,120]
[357075658,1743692626795,-602.90798277,0.00049315,120]
[357075659,1743692626842,-602.90798277,0.00049315,120]
[357075660,1743692626891,-602.90798277,0.00049315,120]
[357075661,1743692626938,-602.90798277,0.00049315,120]
[357075662,1743692626982,-503.51243078,0.00049315,120]
[357075663,1743692627027,-602.90798277,0.00049315,120]
[357075664,1743692627073,-602.90798277,0.00049315,120]
[357075665,1743692627117,-602.90798277,0.00049315,120]
[357075666,1743692627166,-602.90798277,0.00049315,120]
[357075667,1743692627215,-602.90798277,0.00049315,120]
[357075668,1743692627262,-602.90798277,0.00049315,120]
[357075669,1743692627307,-602.90798277,0.00049315,120]
[357075670,1743692627352,-500.0,0.00049315,120]
[357075671,1743692627398,-602.90798277,0.00049315,120]
[357075672,1743692627444,-602.90798277,0.00049315,120]
[357075673,1743692627489,-602.90798277,0.00049315,120]
[357075674,1743692627534,-500.0,0.00049315,120]
[357075675,1743692627577,-602.90798277,0.00049315,120]
[357075676,1743692627626,-602.90798277,0.00049315,120]
[357075677,1743692627673,-602.90798277,0.00049315,120]
[357075678,1743692627719,-602.90798277,0.00049315,120]
[357075679,1743692627768,-602.90798277,0.00049315,120]
[357075680,1743692627814,-602.90798277,0.00049315,120]
[357075681,1743692627858,-602.90798277,0.00049315,120]
[357075682,1743692627903,-602.90798277,0.00049315,120]
[357075683,1743692627947,-602.90798277,0.00049315,120]
[357075684,1743692627993,-519.471749,0.00049315,120]
[357075685,1743692628037,-602.90798277,0.00049315,120]
[357075686,1743692628084,-500.0,0.00049315,120]
[357075687,1743692628133,-602.90798277,0.00049315,120]
[357075688,1743692628184,-602.90798277,0.00049315,120]
[357075689,1743692628232,-602.90798277,0.00049315,120]
[357075690,1743692628284,-602.90798277,0.00049315,120]
[357075691,1743692628332,-602.90798277,0.00049315,120]
[357075692,1743692628379,-602.90798277,0.00049315,120]
[357075693,1743692628424,-3036.01,0.00049315,120]
[357075694,1743692628470,-502.08383559,0.00049315,120]
[357075695,1743692628517,-517.33183788,0.00049315,120]
[357075696,1743692628565,-500.0,0.00049315,120]
[357075697,1743692628613,-524.95192424,0.00049315,120]
[357075698,1743692628661,-500.0,0.00049315,120]
[357075699,1743692628709,-500.0,0.00049315,120]
[357075700,1743692628754,-503.42293745,0.00049315,120]
[357075701,1743692628801,-510.82654421,0.00049315,120]
[357075702,1743692628850,-500.0,0.00049315,120]
[357075703,1743692628894,-500.0,0.00049315,120]
[357075704,1743692628940,-502.54950676,0.00049315,120]
[357075705,1743692628985,-1625.45,0.00049315,120]
[357075706,1743692629035,-500.0,0.00049315,120]
[357075707,1743692629084,-500.0,0.00049315,120]
[357075708,1743692629131,-500.0,0.00049315,120]
[357075709,1743692629178,-2914.69,0.00049315,120]
[357075710,1743692629225,-500.0,0.00049315,120]
[357075711,1743692629271,-514.7073679,0.00049315,120]
[357075712,1743692629317,-500.0,0.00049315,120]
[357075713,1743692629363,-500.0,0.00049315,120]
[357075714,1743692629409,-500.0,0.00049315,120]
[357075715,1743692629457,-508.47084601,0.00049315,120]
[357075716,1743692629503,-502.7447106,0.00049315,120]
[357075717,1743692629550,-500.0,0.00049315,120]
[357075718,1743692629597,-500.0,0.00049315,120]
[357075719,1743692629646,-500.0,0.00049315,120]
[357075720,1743692629694,-602.9,0.00049315,120]
[357075721,1743692629740,-570.46695529,0.00049315,120]
[357075722,1743692629787,-2802.27,0.00049315,120]
[357075723,1743692629956,-596.87890294,0.00049315,120]
[357075724,1743692630007,-596.87890294,0.00049315,120]
[357075725,1743692630060,-596.87890294,0.00049315,120]
[357075726,1743692630107,-596.87890294,0.00049315,120]
[357075727,1743692630157,-596.87890294,0.00049315,120]
[357075728,1743692630207,-596.87890294,0.00049315,120]
[357075729,1743692630253,-596.87890294,0.00049315,120]
[357075730,1743692630300,-596.87890294,0.00049315,120]
[357075731,1743692630345,-596.87890294,0.00049315,120]
[357075732,1743692630391,-596.87890294,0.00049315,120]
[357075733,1743692630439,-596.87890294,0.00049315,120]
[357075734,1743692630486,-596.87890294,0.00049315,120]
[357075735,1743692630531,-500.0,0.00049315,120]
[357075736,1743692630578,-596.87890294,0.00049315,120]
[357075737,1743692630621,-596.87890294,0.00049315,120]
[357075738,1743692630665,-596.87890294,0.00049315,120]
[357075739,1743692630723,-596.87890294,0.00049315,120]
[357075740,1743692630774,-500.0,0.00049315,120]
[357075741,1743692630820,-596.87890294,0.00049315,120]
[357075742,1743692630868,-596.87890294,0.00049315,120]
[357075743,1743692630914,-596.87890294,0.00049315,120]
[357075744,1743692630964,-596.87890294,0.00049315,120]
[357075745,1743692631011,-596.87890294,0.00049315,120]
[357075746,1743692631059,-596.87890294,0.00049315,120]
[357075747,1743692631105,-596.87890294,0.00049315,120]
[357075748,1743692631152,-596.87890294,0.00049315,120]
[357075749,1743692631198,-596.87890294,0.00049315,120]
[357075750,1743692631248,-596.87890294,0.00049315,120]
[357075751,1743692631295,-596.87890294,0.00049315,120]
[357075752,1743692631342,-596.87890294,0.00049315,120]
[357075753,1743692631388,-596.87890294,0.00049315,120]
[357075754,1743692631436,-596.87890294,0.00049315,120]
[357075755,1743692631484,-596.87890294,0.00049315,120]
[357075756,1743692631532,-596.87890294,0.00049315,120]
[357075757,1743692631583,-596.87890294,0.00049315,120]
[357075758,1743692631628,-503.5928175,0.00049315,120]
[357075759,1743692631676,-500.0,0.00049315,120]
[357075760,1743692631722,-500.0,0.00049315,120]
[357075761,1743692631770,-500.0,0.00049315,120]
[357075762,1743692631815,-500.0,0.00049315,120]
[357075763,1743692631860,-2921.81,0.00049315,120]
[357075764,1743692631906,-500.0,0.00049315,120]
[357075765,1743692631953,-501.6628912,0.00049315,120]
[357075766,1743692631999,-500.0,0.00049315,120]
[357075767,1743692632041,-512.65330724,0.00049315,120]
[357075768,1743692632086,-524.25755802,0.00049315,120]
[357075769,1743692632130,-522.28331048,0.00049315,120]
[357075770,1743692632175,-500.0,0.00049315,120]
[357075771,1743692632219,-500.0,0.00049315,120]
[357075772,1743692632261,-500.0,0.00049315,120]
[357075773,1743692632304,-1239.33,0.00049315,120]
[357075774,1743692632348,-856.26,0.00049315,120]
[357075775,1743692632390,-500.0,0.00049315,120]
[357075776,1743692632435,-2272.59,0.00049315,120]
[357075777,1743692632478,-500.0,0.00049315,120]
[357075778,1743692632524,-2580.12,0.00049315,120]
[357075779,1743692632566,-366.56809031,0.00049315,120]
[357075780,1743692632609,-500.0,0.00049315,120]
[357075781,1743692632656,-2661.08,0.00049315,120]
[357075782,1743692632701,-500.0,0.00049315,120]
[357075783,1743692632744,-517.15075555,0.00049315,120]
[357075784,1743692632788,-523.04274094,0.00049315,120]
[357075785,1743692632833,-500.0,0.00049315,120]
[357075786,1743692632880,-573.66694561,0.00049315,120]
[357075787,1743692632926,-573.66694561,0.00049315,120]
[357075788,1743692632973,-580.0937265,0.00049315,120]
[357075789,1743692633021,-573.66694561,0.00049315,120]
[357075790,1743692633069,-573.66694561,0.00049315,120]
[357075791,1743692633116,-573.66694561,0.00049315,120]
[357075792,1743692633166,-573.66694561,0.00049315,120]
[357075793,1743692633214,-573.66694561,0.00049315,120]
[357075794,1743692633263,-573.66694561,0.00049315,120]
[357075795,1743692633310,-573.66694561,0.00049315,120]
[357075796,1743692633484,-573.66694561,0.00049315,120]
[357075797,1743692633533,-500.0,0.00049315,120]
[357075798,1743692633579,-573.66694561,0.00049315,120]
[357075799,1743692633624,-573.66694561,0.00049315,120]
[357075800,1743692633668,-573.66694561,0.00049315,120]
[357075801,1743692633713,-500.0,0.00049315,120]
[357075802,1743692633758,-573.66694561,0.00049315,120]
[357075803,1743692633802,-573.66694561,0.00049315,120]
[357075804,1743692633848,-500.0,0.00049315,120]
[357075805,1743692633892,-500.0,0.00049315,120]
[357075806,1743692633939,-500.0,0.00049315,120]
[357075807,1743692633983,-524.68423588,0.00049315,120]
[357075808,1743692634034,-1837.94,0.00049315,120]
[357075809,1743692634079,-565.39372626,0.00049315,120]
[357075810,1743692634128,-500.0,0.00049315,120]
[357075811,1743692634174,-500.0,0.00049315,120]
[357075812,1743692634220,-500.0,0.00049315,120]
[357075813,1743692634264,-500.0,0.00049315,120]
[357075814,1743692634310,-500.0,0.00049315,120]
[357075815,1743692634355,-2624.31,0.00049315,120]
[357075816,1743692634400,-2226.43,0.00049315,120]
[357075817,1743692634446,-500.0,0.00049315,120]
[357075818,1743692634492,-500.0,0.00049315,120]
[357075819,1743692634537,-500.0,0.00049315,120]
[357075820,1743692634580,-500.0,0.00049315,120]
[357075821,1743692634623,-500.0,0.00049315,120]
[357075822,1743692634666,-2754.91,0.00049315,120]
[357075823,1743692634708,-500.0,0.00049315,120]
[357075824,1743692634755,-500.0,0.00049315,120]
[357075825,1743692634800,-500.0,0.00049315,120]
[357075826,1743692634847,-523.60311441,0.00049315,120]
[357075827,1743692634890,-500.0,0.00049315,120]
[357075828,1743692634935,-625.89126904,0.00049315,120]
[357075829,1743692634979,-154.05270403,0.00049315,120]
[357075830,1743692635024,-500.0,0.00049315,120]
[357075831,1743692635068,-518.11298796,0.00049315,120]
[357075832,1743692635113,-845.67,0.00049315,120]
[357075833,1743692635158,-500.0,0.00049315,120]
[357075834,1743692635207,-500.0,0.00049315,120]
[357075835,1743692635253,-500.0,0.00049315,120]
[357075836,1743692635301,-500.0,0.00049315,120]
[357075837,1743692635345,-360.73979306,0.00049315,120]
[357075838,1743692635388,-504.65753712,0.00049315,120]
[357075839,1743692635433,-500.0,0.00049315,120]
[357075840,1743692635477,-500.0,0.00049315,120]
[357075841,1743692635521,-238.00416191,0.00049315,120]
[357075842,1743692635565,-500.0,0.00049315,120]
[357075843,1743692635608,-500.0,0.00049315,120]
[357075844,1743692635654,-500.0,0.00049315,120]
[357075845,1743692635698,-549.13531312,0.00049315,120]
[357075846,1743692635744,-717.08368199,0.00049315,120]
[357075847,1743692635788,-717.08368199,0.00049315,120]
[357075848,1743692635831,-500.0,0.00049315,120]
[357075849,1743692635877,-717.08368199,0.00049315,120]
[357075850,1743692635920,-500.0,0.00049315,120]
[357075851,1743692635965,-717.08368199,0.00049315,120]
[357075852,1743692636009,-1475.61,0.00049315,120]
[357075853,1743692636057,-3276.33,0.00049315,120]
[357075854,1743692636102,-500.0,0.00049315,120]
[357075855,1743692636148,-526.00181124,0.00049315,120]
[357075856,1743692636194,-500.0,0.00049315,120]
[357075857,1743692636244,-500.0,0.00049315,120]
[357075858,1743692636291,-1388.54,0.00049315,120]
[357075859,1743692636335,-507.58878882,0.00049315,120]
[357075860,1743692636381,-876.13,0.00049315,120]
[357075861,1743692636426,-505.29727342,0.00049315,120]
[357075862,1743692636471,-494.05684782,0.00049315,120]
[357075863,1743692636517,-500.0,0.00049315,120]
[357075864,1743692636562,-500.0,0.00049315,120]
[357075865,1743692636607,-500.0,0.00049315,120]
[357075866,1743692636657,-529.82501538,0.00049315,120]
[357075867,1743692636702,-500.0,0.00049315,120]
[357075868,1743692636865,-3299.24,0.00049315,120]
[357075869,1743692636913,-500.0,0.00049315,120]
[357075870,1743692636962,-509.91092745,0.00049315,120]
[357075871,1743692637012,-500.0,0.00049315,120]
[357075872,1743692637060,-529.91273679,0.00049315,120]
[357075873,1743692637109,-500.0,0.00049315,120]
[357075874,1743692637156,-500.0,0.00049315,120]
[357075875,1743692637203,-535.48971254,0.00049315,120]
[357075876,1743692637250,-500.0,0.00049315,120]
[357075877,1743692637293,-608.43046557,0.00049315,120]
[357075878,1743692637337,-500.0,0.00049315,120]
[357075879,1743692637379,-500.0,0.00049315,120]
[357075880,1743692637421,-500.0,0.00049315,120]
[357075881,1743692637465,-500.0,0.00049315,120]
[357075882,1743692637511,-500.0,0.00049315,120]
[357075883,1743692637554,-500.0,0.00049315,120]
[357075884,1743692637598,-500.0,0.00049315,120]
[357075885,1743692637644,-500.0,0.00049315,120]
[357075886,1743692637688,-500.0,0.00049315,120]
[357075887,1743692637731,-500.0,0.00049315,120]
[357075888,1743692637776,-500.0,0.00049315,120]
[357075889,1743692637821,-1676.16,0.00049315,120]
[357075890,1743692637864,-536.53122487,0.00049315,120]
[357075891,1743692637907,-2285.04,0.00049315,120]
[357075892,1743692637954,-500.0,0.00049315,120]
[357075893,1743692637999,-500.0,0.00049315,120]
[357075894,1743692638041,-500.0,0.00049315,120]
[357075895,1743692638083,-500.0,0.00049315,120]
[357075896,1743692638125,-500.0,0.00049315,120]
[357075897,1743692638167,-764.13,0.00049315,120]
[357075898,1743692638207,-2040.3,0.00049315,120]
[357075899,1743692638248,-565.19465876,0.00049315,120]
[357075900,1743692638289,-786.8,0.00049315,120]
[357075901,1743692638330,-500.0,0.00049315,120]
[357075902,1743692638371,-500.0,0.00049315,120]
[357075903,1743692638413,-509.60715937,0.00049315,120]
[357075904,1743692638456,-803.22,0.00049315,120]
[357075905,1743692638499,-500.0,0.00049315,120]
[357075906,1743692638541,-500.0,0.00049315,120]
[357075907,1743692638583,-525.19239636,0.00049315,120]
[357075908,1743692638627,-500.0,0.00049315,120]
[357075909,1743692638670,-346.7623866,0.00049315,120]
[357075910,1743692638714,-500.0,0.00049315,120]
[357075911,1743692638757,-500.0,0.00049315,120]
[357075912,1743692638799,-501.74953722,0.00049315,120]
[357075913,1743692638843,-500.0,0.00049315,120]
[357075914,1743692638885,-500.0,0.00049315,120]
[357075915,1743692638929,-4292.15,0.00049315,120]
[357075916,1743692638971,-528.35636489,0.00049315,120]
[357075917,1743692639017,-500.0,0.00049315,120]
[357075918,1743692639069,-587.43,0.00049315,120]
[357075919,1743692639115,-517.10328465,0.00049315,120]
[357075920,1743692639162,-500.0,0.00049315,120]
[357075921,1743692639206,-501.39678672,0.00049315,120]
[357075922,1743692639249,-505.44230702,0.00049315,120]
[357075923,1743692639293,-3236.91,0.00049315,120]
[357075924,1743692639337,-505.38683928,0.00049315,120]
[357075925,1743692639381,-500.0,0.00049315,120]
[357075926,1743692639429,-500.0,0.00049315,120]
[357075927,1743692639477,-500.0,0.00049315,120]
[357075928,1743692639527,-536.31692595,0.00049315,120]
[357075929,1743692639575,-500.0,0.00049315,120]
[357075930,1743692639623,-3014.6,0.00049315,120]
[357075931,1743692639672,-500.0,0.00049315,120]
[357075932,1743692639717,-524.17160982,0.00049315,120]
[357075933,1743692639761,-1463.87,0.00049315,120]
[357075934,1743692639806,-500.0,0.00049315,120]
[357075935,1743692639850,-514.39570908,0.00049315,120]
[357075936,1743692639990,-500.0,0.00049315,120]
[357075937,1743692640041,-500.0,0.00049315,120]
[357075938,1743692640088,-500.0,0.00049315,120]
[357075939,1743692640139,-500.0,0.00049315,120]
[357075940,1743692640189,-3215.99,0.00049315,120]
[357075941,1743692640238,-507.63871205,0.00049315,120]
[357075942,1743692640288,-545.45299251,0.00049315,120]
[357075943,1743692640336,-500.0,0.00049315,120]
[357075944,1743692640385,-3201.0,0.00049315,120]
[357075945,1743692640438,-500.0,0.00049315,120]
[357075946,1743692640490,-508.29088003,0.00049315,120]
[357075947,1743692640545,-509.54723762,0.00049315,120]
[357075948,1743692640595,-500.0,0.00049315,120]
[357075949,1743692640648,-500.0,0.00049315,120]
[357075950,1743692640697,-500.0,0.00049315,120]
[357075951,1743692640746,-536.74544359,0.00049315,120]
[357075952,1743692640792,-500.0,0.00049315,120]
[357075953,1743692640838,-500.0,0.00049315,120]
[357075954,1743692640885,-500.0,0.00049315,120]
[357075955,1743692640931,-500.0,0.00049315,120]
[357075956,1743692640977,-500.0,0.00049315,120]
[357075957,1743692641023,-500.0,0.00049315,120]
[357075958,1743692641072,-500.0,0.00049315,120]
[357075959,1743692641117,-500.0,0.00049315,120]
[357075960,1743692641164,-500.0,0.00049315,120]
[357075961,1743692641209,-500.0,0.00049315,120]
[357075962,1743692641257,-515.04460164,0.00049315,120]
[357075963,1743692641305,-500.0,0.00049315,120]
[357075964,1743692641352,-500.0,0.00049315,120]
[357075965,1743692641396,-507.3819144,0.00049315,120]
[357075966,1743692641442,-500.0,0.00049315,120]
[357075967,1743692641490,-500.0,0.00049315,120]
[357075968,1743692641541,-500.0,0.00049315,120]
[357075969,1743692641588,-500.0,0.00049315,120]
[357075970,1743692641633,-505.30357718,0.00049315,120]
[357075971,1743692641679,-2322.92,0.00049315,120]
[357075972,1743692641723,-575.08532372,0.00049315,120]
[357075973,1743692641767,-514.32397983,0.00049315,120]
[357075974,1743692641812,-506.55725159,0.00049315,120]
[357075975,1743692641863,-2823.25,0.00049315,120]
[357075976,1743692641912,-500.0,0.00049315,120]
[357075977,1743692641963,-500.0,0.00049315,120]
[357075978,1743692642012,-500.0,0.00049315,120]
[357075979,1743692642059,-500.0,0.00049315,120]
[357075980,1743692642108,-500.0,0.00049315,120]
[357075981,1743692642154,-535.27,0.00049315,120]
[357075982,1743692642198,-504.79273666,0.00049315,120]
[357075983,1743692642243,-513.07984248,0.00049315,120]
[357075984,1743692642290,-500.0,0.00049315,120]
[357075985,1743692642337,-500.0,0.00049315,120]
[357075986,1743692642381,-501.29,0.00049315,120]
[357075987,1743692642427,-520.45864711,0.00049315,120]
[357075988,1743692642471,-500.0,0.00049315,120]
[357075989,1743692642516,-2835.58,0.00049315,120]
[357075990,1743692642560,-517.22121522,0.00049315,120]
[357075991,1743692642609,-915.78,0.00049315,120]
[357075992,1743692642659,-500.0,0.00049315,120]
[357075993,1743692642707,-651.54,0.00049315,120]
[357075994,1743692642757,-512.11263104,0.00049315,120]
[357075995,1743692642805,-500.0,0.00049315,120]
[357075996,1743692642852,-500.0,0.00049315,120]
[357075997,1743692642903,-500.0,0.00049315,120]
[357075998,1743692642954,-500.0,0.00049315,120]
[357075999,1743692643001,-513.5633873,0.00049315,120]
[357076000,1743692643050,-500.0,0.00049315,120]
[357076001,1743692643100,-2504.11,0.00049315,120]
[357076002,1743692643150,-500.0,0.00049315,120]
[357076003,1743692643318,-506.69598158,0.00049315,120]
[357076004,1743692643371,-1000.0,0.00049315,120]
[357076005,1743692643422,-505.6096135,0.00049315,120]
[357076006,1743692643473,-500.0,0.00049315,120]
[357076007,1743692643525,-513.88331979,0.00049315,120]
[357076008,1743692643577,-500.0,0.00049315,120]
[357076009,1743692643628,-507.33841522,0.00049315,120]
[357076010,1743692643686,-500.0,0.00049315,30]
[357076011,1743692643741,-511.98856346,0.00049315,120]
[357076012,1743692643799,-500.0,0.00049315,120]
[357076013,1743692643857,-509.25451186,0.00049315,120]
[357076014,1743692643912,-521.83035294,0.00049315,120]
[357076015,1743692643966,-500.0,0.00049315,120]
[357076016,1743692644022,-500.0,0.00049315,120]
[357076017,1743692644078,-910.1,0.00049315,120]
[357076018,1743692644131,-500.0,0.00049315,120]
[357076019,1743692644184,-3196.24,0.00049315,120]
[357076020,1743692644235,-2000.0,0.00049315,30]
[357076021,1743692644288,-500.0,0.00049315,120]
[357076022,1743692644338,-515.71411545,0.00049315,120]
[357076023,1743692644390,-500.0,0.00049315,120]
[357076024,1743692644444,-500.0,0.00049315,120]
[357076025,1743692644496,-500.0,0.00049315,120]
[357076026,1743692644546,-546.09406626,0.00049315,120]
[357076027,1743692644592,-500.0,0.00049315,120]
[357076028,1743692644637,-515.84607847,0.00049315,120]
[357076029,1743692644685,-500.0,0.00049315,120]
[357076030,1743692644732,-500.0,0.00049315,120]
[357076031,1743692644779,-201.96760361,0.00049315,120]
[357076032,1743692644824,-3157.32,0.00049315,120]
[357076033,1743692644870,-500.0,0.00049315,120]
[357076034,1743692644916,-500.0,0.00049315,120]
[357076035,1743692644961,-500.0,0.00049315,120]
[357076036,1743692645008,-500.0,0.00049315,120]
[357076037,1743692645056,-500.0,0.00049315,120]
[357076038,1743692645104,-500.0,0.00049315,120]
[357076039,1743692645150,-500.0,0.00049315,120]
[357076040,1743692645197,-500.0,0.00049315,120]
[357076041,1743692645246,-164.17263535,0.00049315,120]
[357076042,1743692645293,-514.0,0.00049315,120]
[357076043,1743692645342,-1000.0,0.00049315,120]
[357076044,1743692645390,-166.42,0.00049315,120]
[357076045,1743692645436,-156.23,0.0004932,120]
[357076046,1743692645485,-182.27952957,0.0004932,120]
[357076047,1743692645531,-192.1283685,0.0004932,120]
[357076048,1743692645578,-500.0,0.00049342,30]
[357076049,1743692645625,-500.0,0.00049432,30]
[357076050,1743692645672,-212.86263,0.00049488,30]
[357076051,1743692645722,-302.78472766,0.000495,120]
[357076052,1743692645769,-5046.91802,0.000495,30]
[357076053,1743692645820,-439.735486,0.00049589,120]
[357076054,1743692645868,-2198.677429,0.00049589,120]
[357076055,1743692645917,-495.18096818,0.00049589,120]
[357076056,1743692645966,-535.07573267,0.00049589,60]
[357076057,1743692646015,-534.46072198,0.00049589,120]
[357076058,1743692646064,-511.5207279,0.00049589,120]
[357076059,1743692646113,-511.8200748,0.00049589,120]
[357076060,1743692646161,-500.0,0.00049589,120]
[357076061,1743692646212,-512.74751237,0.00049589,120]
[357076062,1743692646263,-500.0,0.00049589,120]
[357076063,1743692646313,-500.0,0.00049589,120]
[357076064,1743692646363,-500.0,0.00049589,120]
[357076065,1743692646412,-516.1133116,0.00049589,120]
[357076066,1743692646462,-500.0,0.00049589,120]
[357076067,1743692646658,-500.0,0.00049589,120]
[357076068,1743692646707,-617.82,0.00049589,120]
[357076069,1743692646757,-500.0,0.00049589,120]
[357076070,1743692646805,-500.0,0.00049589,120]
[357076071,1743692646858,-500.0,0.00049589,120]
[357076072,1743692646910,-500.0,0.00049589,120]
[357076073,1743692646962,-545.2075048,0.00049589,120]
[357076074,1743692647011,-500.0,0.00049589,120]
[357076075,1743692647060,-500.0,0.00049589,120]
[357076076,1743692647105,-1120.03,0.00049589,120]
[357076077,1743692647150,-500.0,0.00049589,120]
[357076078,1743692647197,-572.5432646,0.00049589,120]
[357076079,1743692647243,-416.89909232,0.00049589,120]
[357076080,1743692647294,-500.0,0.00049589,120]
[357076081,1743692647342,-500.0,0.00049589,120]
[357076082,1743692647391,-239.01586474,0.00049589,120]
[357076083,1743692647436,-770.49,0.00049589,120]
[357076084,1743692647483,-500.0,0.00049589,120]
[357076085,1743692647534,-537.83724951,0.00049589,120]
[357076086,1743692647580,-517.45749138,0.00049589,120]
[357076087,1743692647631,-531.28743445,0.00049589,120]
[357076088,1743692647685,-522.71479633,0.00049589,120]
[357076089,1743692647739,-507.54813037,0.00049589,120]
[357076090,1743692647788,-521.42107484,0.00049589,120]
[357076091,1743692647834,-501.98829718,0.00049589,120]
[357076092,1743692647879,-500.0,0.00049589,120]
[357076093,1743692647923,-500.0,0.00049589,120]
[357076094,1743692647968,-500.0,0.00049589,120]
[357076096,1743692648014,-500.0,0.00049589,120]
[357076097,1743692648060,-500.0,0.00049589,120]
[357076098,1743692648106,-500.0,0.00049589,120]
[357076099,1743692648151,-552.68554871,0.00049589,120]
[357076100,1743692648196,-500.0,0.00049589,120]
[357076101,1743692648243,-500.0,0.00049589,120]
[357076102,1743692648292,-516.52510002,0.00049589,120]
[357076103,1743692648342,-542.93023952,0.00049589,120]
[357076104,1743692648396,-516.3822599,0.00049589,120]
[357076105,1743692648446,-500.0,0.00049589,120]